[Event "Titled Tuesday Blitz May 03 Late 2022"]
[White "Mirza, Diana"]
[Black "Yurovskykh, Oleksandr"]
[WhiteFideId "2503999"]
[BlackFideId "14134020"]
[WhiteElo "1813"]
[BlackElo "2292"]
[Result "0-1"]
[Round "11"]
[TimeControl "180+1"]
[Date "2022.05.03"]
[WhiteClock "0:00:07"]
[BlackClock "0:00:07"]

1. d4 {[%clk 0:03:00]}  d5 {[%clk 0:02:59]} 2. Nf3 {[%clk 0:03:00]}  Nf6 {[%clk 0:02:58]} 3. e3 {[%clk 0:03:00]}  Bg4 {[%clk 0:02:56]} 4. c4 {[%clk 0:02:59]}  e6 {[%clk 0:02:56]} 5. Nc3 {[%clk 0:02:59]}  dxc4 {[%clk 0:02:51]} 6. Bxc4 {[%clk 0:02:59]}  a6 {[%clk 0:02:51]} 7. O-O {[%clk 0:02:58]}  c5 {[%clk 0:02:43]} 8. h3 {[%clk 0:02:43]}  Bh5 {[%clk 0:02:42]} 9. g4 {[%clk 0:02:40]}  Bg6 {[%clk 0:02:42]} 10. dxc5 {[%clk 0:02:34]}  Bxc5 {[%clk 0:02:31]} 11. Qxd8+ {[%clk 0:02:32]}  Kxd8 {[%clk 0:02:32]} 12. Rd1+ {[%clk 0:02:29]}  Ke7 {[%clk 0:02:33]} 13. Ne5 {[%clk 0:02:29]}  Nbd7 {[%clk 0:02:25]} 14. Nxd7 {[%clk 0:02:11]}  Nxd7 {[%clk 0:02:23]} 15. Ne2 {[%clk 0:02:07]}  Ne5 {[%clk 0:02:15]} 16. Bb3 {[%clk 0:02:05]}  Be4 {[%clk 0:02:00]} 17. Ng3 {[%clk 0:01:52]}  Bc6 {[%clk 0:01:41]} 18. f4 {[%clk 0:01:42]}  Nd7 {[%clk 0:01:21]} 19. Bd2 {[%clk 0:01:35]}  Nb6 {[%clk 0:01:18]} 20. Kh2 {[%clk 0:01:25]}  Nd5 {[%clk 0:01:16]} 21. e4 {[%clk 0:01:21]}  Nf6 {[%clk 0:01:11]} 22. e5 {[%clk 0:01:14]}  Ne4 {[%clk 0:01:05]} 23. Nxe4 {[%clk 0:01:11]}  Bxe4 {[%clk 0:01:06]} 24. Rac1 {[%clk 0:01:02]}  Rac8 {[%clk 0:01:02]} 25. a3 {[%clk 0:00:57]}  Rhd8 {[%clk 0:00:49]} 26. Ba5 {[%clk 0:00:44]}  b6 {[%clk 0:00:31]} 27. Be1 {[%clk 0:00:34]}  Be3 {[%clk 0:00:18]} 28. Bh4+ {[%clk 0:00:33]}  f6 {[%clk 0:00:16]} 29. exf6+ {[%clk 0:00:33]}  gxf6 {[%clk 0:00:17]} 30. Rxc8 {[%clk 0:00:31]}  Bxf4+ {[%clk 0:00:16]} 31. Kg1 {[%clk 0:00:20]}  Rxc8 {[%clk 0:00:15]} 32. Rd4 {[%clk 0:00:15]}  Be3+ {[%clk 0:00:15]} 33. Bf2 {[%clk 0:00:14]}  Bxd4 {[%clk 0:00:15]} 34. Bxd4 {[%clk 0:00:14]}  b5 {[%clk 0:00:13]} 35. Kf2 {[%clk 0:00:11]}  Rc1 {[%clk 0:00:13]} 36. Ke3 {[%clk 0:00:10]}  Bd5 {[%clk 0:00:11]} 37. Bxd5 {[%clk 0:00:09]}  exd5 {[%clk 0:00:12]} 38. Kf4 {[%clk 0:00:08]}  Ke6 {[%clk 0:00:12]} 39. h4 {[%clk 0:00:08]}  Rf1+ {[%clk 0:00:12]} 40. Kg3 {[%clk 0:00:08]}  Rd1 {[%clk 0:00:10]} 41. Bc3 {[%clk 0:00:07]}  d4 {[%clk 0:00:09]} 42. Bb4 {[%clk 0:00:07]}  d3 {[%clk 0:00:09]} 43. Kf2 {[%clk 0:00:07]}  Rh1 {[%clk 0:00:08]} 44. Ke3 {[%clk 0:00:06]}  Rxh4 {[%clk 0:00:08]} 45. Kxd3 {[%clk 0:00:06]}  Rxg4 {[%clk 0:00:08]} 46. Kc3 {[%clk 0:00:06]}  h5 {[%clk 0:00:09]} 47. b3 {[%clk 0:00:05]}  h4 {[%clk 0:00:09]} 48. a4 {[%clk 0:00:06]}  bxa4 {[%clk 0:00:09]} 49. bxa4 {[%clk 0:00:07]}  h3 {[%clk 0:00:07]} 50. Bc5 {[%clk 0:00:07]}  h2 {[%clk 0:00:07]} 0-1


[Site "https://www.chess.com"]

[Event "Titled Tuesday Blitz May 03 Late 2022"]
[White "Pakleza, Zbigniew"]
[Black "Melikyan, Gnel"]
[WhiteFideId "1119290"]
[BlackFideId "54109990"]
[WhiteElo "2467"]
[BlackElo "1772"]
[Result "1/2-1/2"]
[Round "11"]
[TimeControl "180+1"]
[Date "2022.05.03"]
[WhiteClock "0:00:03"]
[BlackClock "0:00:07"]

1. Nf3 {[%clk 0:02:58]}  Nf6 {[%clk 0:02:59]} 2. c4 {[%clk 0:02:58]}  c5 {[%clk 0:02:58]} 3. Nc3 {[%clk 0:02:57]}  Nc6 {[%clk 0:02:59]} 4. e3 {[%clk 0:02:57]}  g6 {[%clk 0:02:58]} 5. d4 {[%clk 0:02:56]}  cxd4 {[%clk 0:02:58]} 6. exd4 {[%clk 0:02:54]}  d5 {[%clk 0:02:58]} 7. cxd5 {[%clk 0:02:49]}  Nxd5 {[%clk 0:02:57]} 8. Bc4 {[%clk 0:02:49]}  Nb6 {[%clk 0:02:55]} 9. Bb3 {[%clk 0:02:44]}  Bg7 {[%clk 0:02:54]} 10. Be3 {[%clk 0:02:31]}  O-O {[%clk 0:02:52]} 11. h3 {[%clk 0:02:24]}  Nb4 {[%clk 0:02:10]} 12. O-O {[%clk 0:02:21]}  N4d5 {[%clk 0:02:09]} 13. Bg5 {[%clk 0:02:18]}  Re8 {[%clk 0:02:07]} 14. Re1 {[%clk 0:02:18]}  Be6 {[%clk 0:02:05]} 15. Bh4 {[%clk 0:02:04]}  Rc8 {[%clk 0:02:01]} 16. Rc1 {[%clk 0:02:04]}  Nf4 {[%clk 0:01:44]} 17. Qd2 {[%clk 0:01:17]}  Bxb3 {[%clk 0:01:42]} 18. Qxf4 {[%clk 0:01:15]}  Bd5 {[%clk 0:01:29]} 19. Nxd5 {[%clk 0:00:56]}  Nxd5 {[%clk 0:01:20]} 20. Qe4 {[%clk 0:00:52]}  Qd7 {[%clk 0:01:11]} 21. Ne5 {[%clk 0:00:49]}  Qd6 {[%clk 0:00:40]} 22. Bg3 {[%clk 0:00:33]}  Nf6 {[%clk 0:00:38]} 23. Qxb7 {[%clk 0:00:31]}  Rxc1 {[%clk 0:00:37]} 24. Rxc1 {[%clk 0:00:31]}  Qxd4 {[%clk 0:00:37]} 25. Rc8 {[%clk 0:00:24]}  Rxc8 {[%clk 0:00:25]} 26. Qxc8+ {[%clk 0:00:25]}  Bf8 {[%clk 0:00:25]} 27. Nc6 {[%clk 0:00:26]}  Qd1+ {[%clk 0:00:19]} 28. Kh2 {[%clk 0:00:26]}  Kg7 {[%clk 0:00:19]} 29. Nxa7 {[%clk 0:00:22]}  Qa4 {[%clk 0:00:17]} 30. Nc6 {[%clk 0:00:15]}  Qxa2 {[%clk 0:00:17]} 31. b4 {[%clk 0:00:15]}  Qc4 {[%clk 0:00:16]} 32. Qb7 {[%clk 0:00:09]}  Nd5 {[%clk 0:00:14]} 33. Ne5 {[%clk 0:00:08]}  Qxb4 {[%clk 0:00:13]} 34. Qxd5 {[%clk 0:00:08]}  e6 {[%clk 0:00:13]} 35. Qd7 {[%clk 0:00:08]}  Qe7 {[%clk 0:00:12]} 36. Qd4 {[%clk 0:00:08]}  Qf6 {[%clk 0:00:11]} 37. Qe4 {[%clk 0:00:08]}  Bd6 {[%clk 0:00:11]} 38. Ng4 {[%clk 0:00:05]}  Bxg3+ {[%clk 0:00:11]} 39. Kxg3 {[%clk 0:00:05]}  Qc3+ {[%clk 0:00:10]} 40. Qe3 {[%clk 0:00:05]}  Qc7+ {[%clk 0:00:11]} 41. Qe5+ {[%clk 0:00:05]}  Qxe5+ {[%clk 0:00:11]} 42. Nxe5 {[%clk 0:00:06]}  f6 {[%clk 0:00:11]} 43. Nc6 {[%clk 0:00:06]}  e5 {[%clk 0:00:11]} 44. f4 {[%clk 0:00:03]}  e4 {[%clk 0:00:08]} 45. f5 {[%clk 0:00:03]}  g5 {[%clk 0:00:07]} 46. Nd4 {[%clk 0:00:02]}  Kh6 {[%clk 0:00:07]} 47. Kf2 {[%clk 0:00:02]}  Kh5 {[%clk 0:00:07]} 48. g3 {[%clk 0:00:03]}  g4 {[%clk 0:00:06]} 49. h4 {[%clk 0:00:03]}  h6 {[%clk 0:00:07]} 50. Ne2 {[%clk 0:00:02]}  e3+ {[%clk 0:00:07]} 51. Kxe3 {[%clk 0:00:03]} 1/2-1/2


[Site "https://www.chess.com"]

[Event "Titled Tuesday Blitz May 03 Late 2022"]
[White "Romero Ruscalleda, Josep"]
[Black "Przybylski, Wojciech"]
[WhiteFideId "2231859"]
[BlackFideId "1117599"]
[WhiteElo "2289"]
[BlackElo "2133"]
[Result "1-0"]
[Round "11"]
[TimeControl "180+1"]
[Date "2022.05.03"]
[WhiteClock "0:00:10"]
[BlackClock "0:00:02"]

1. e4 {[%clk 0:03:00]}  c5 {[%clk 0:02:58]} 2. c3 {[%clk 0:03:00]}  Nf6 {[%clk 0:02:57]} 3. e5 {[%clk 0:03:01]}  Nd5 {[%clk 0:02:57]} 4. Nf3 {[%clk 0:03:01]}  e6 {[%clk 0:02:56]} 5. d4 {[%clk 0:03:00]}  cxd4 {[%clk 0:02:56]} 6. cxd4 {[%clk 0:03:01]}  Be7 {[%clk 0:02:56]} 7. a3 {[%clk 0:03:00]}  O-O {[%clk 0:02:56]} 8. Bd3 {[%clk 0:03:00]}  d6 {[%clk 0:02:55]} 9. O-O {[%clk 0:03:00]}  dxe5 {[%clk 0:02:55]} 10. dxe5 {[%clk 0:02:59]}  b6 {[%clk 0:02:55]} 11. Qe2 {[%clk 0:02:57]}  Bb7 {[%clk 0:02:53]} 12. Rd1 {[%clk 0:02:54]}  Nd7 {[%clk 0:02:53]} 13. Bd2 {[%clk 0:02:49]}  Nc5 {[%clk 0:02:51]} 14. Bc2 {[%clk 0:02:46]}  Ba6 {[%clk 0:02:48]} 15. Qe1 {[%clk 0:02:39]}  Nd3 {[%clk 0:02:47]} 16. Qe4 {[%clk 0:02:32]}  f5 {[%clk 0:02:14]} 17. exf6 {[%clk 0:02:31]}  Nxf6 {[%clk 0:02:13]} 18. Qxe6+ {[%clk 0:02:31]}  Kh8 {[%clk 0:02:14]} 19. Bc3 {[%clk 0:02:25]}  Nc5 {[%clk 0:02:06]} 20. Qh3 {[%clk 0:01:50]}  Bd3 {[%clk 0:00:58]} 21. Ne1 {[%clk 0:01:21]}  Bxc2 {[%clk 0:00:50]} 22. Rxd8 {[%clk 0:01:20]}  Raxd8 {[%clk 0:00:50]} 23. Nxc2 {[%clk 0:01:18]}  Rd1+ {[%clk 0:00:49]} 24. Be1 {[%clk 0:01:18]}  Nfe4 {[%clk 0:00:35]} 25. Nc3 {[%clk 0:01:15]}  Nxf2 {[%clk 0:00:12]} 26. Qh5 {[%clk 0:00:59]}  Rxa1 {[%clk 0:00:11]} 27. Nxa1 {[%clk 0:00:58]}  Nfd3 {[%clk 0:00:11]} 28. Bg3 {[%clk 0:00:49]}  Bf6 {[%clk 0:00:10]} 29. h3 {[%clk 0:00:36]}  Bd4+ {[%clk 0:00:09]} 30. Kh2 {[%clk 0:00:35]}  Nxb2 {[%clk 0:00:07]} 31. Ne2 {[%clk 0:00:30]}  Bf6 {[%clk 0:00:06]} 32. Nc2 {[%clk 0:00:29]}  Nbd3 {[%clk 0:00:06]} 33. Ncd4 {[%clk 0:00:26]}  Ne4 {[%clk 0:00:05]} 34. Qf5 {[%clk 0:00:17]}  Nxg3 {[%clk 0:00:05]} 35. Nxg3 {[%clk 0:00:16]}  g6 {[%clk 0:00:02]} 36. Qxd3 {[%clk 0:00:15]}  Rd8 {[%clk 0:00:02]} 37. Nge2 {[%clk 0:00:15]}  Be5+ {[%clk 0:00:02]} 38. g3 {[%clk 0:00:14]}  h5 {[%clk 0:00:02]} 39. Qxg6 {[%clk 0:00:12]}  h4 {[%clk 0:00:02]} 40. Qh5+ {[%clk 0:00:11]}  Kg8 {[%clk 0:00:02]} 41. Qxe5 {[%clk 0:00:10]} 1-0


[Site "https://www.chess.com"]

[Event "Titled Tuesday Blitz May 03 Late 2022"]
[White "Rytenko, Vsevolod"]
[Black "Zhang, Derek"]
[WhiteFideId "14133040"]
[BlackFideId "2087871"]
[WhiteElo "2120"]
[BlackElo "2085"]
[Result "1-0"]
[Round "11"]
[TimeControl "180+1"]
[Date "2022.05.03"]
[WhiteClock "0:01:29"]
[BlackClock "0:00:01"]

1. e4 {[%clk 0:03:00]}  e6 {[%clk 0:03:00]} 2. d4 {[%clk 0:03:00]}  d5 {[%clk 0:03:00]} 3. Bd3 {[%clk 0:03:01]}  dxe4 {[%clk 0:03:00]} 4. Bxe4 {[%clk 0:03:01]}  Nf6 {[%clk 0:03:01]} 5. Bf3 {[%clk 0:03:01]}  c5 {[%clk 0:03:01]} 6. Ne2 {[%clk 0:03:02]}  Nc6 {[%clk 0:03:02]} 7. Be3 {[%clk 0:03:01]}  e5 {[%clk 0:03:01]} 8. Bxc6+ {[%clk 0:02:51]}  bxc6 {[%clk 0:03:02]} 9. dxe5 {[%clk 0:02:52]}  Qxd1+ {[%clk 0:03:03]} 10. Kxd1 {[%clk 0:02:53]}  Ng4 {[%clk 0:03:04]} 11. Nbc3 {[%clk 0:02:52]}  Be6 {[%clk 0:02:59]} 12. Nf4 {[%clk 0:02:51]}  Bf5 {[%clk 0:02:35]} 13. h3 {[%clk 0:02:41]}  Nxe5 {[%clk 0:02:34]} 14. g4 {[%clk 0:02:38]}  Bd7 {[%clk 0:02:29]} 15. Ke2 {[%clk 0:02:37]}  Rb8 {[%clk 0:01:46]} 16. b3 {[%clk 0:02:36]}  Be7 {[%clk 0:01:33]} 17. Ne4 {[%clk 0:02:34]}  c4 {[%clk 0:01:28]} 18. Bxa7 {[%clk 0:02:34]}  Rb5 {[%clk 0:01:19]} 19. a4 {[%clk 0:02:32]}  Rb7 {[%clk 0:01:17]} 20. Bd4 {[%clk 0:02:31]}  f6 {[%clk 0:01:06]} 21. a5 {[%clk 0:02:31]}  Kf7 {[%clk 0:00:55]} 22. a6 {[%clk 0:02:30]}  Rb5 {[%clk 0:00:55]} 23. Nc3 {[%clk 0:02:23]}  Rb4 {[%clk 0:00:48]} 24. Rhd1 {[%clk 0:02:05]}  cxb3 {[%clk 0:00:23]} 25. cxb3 {[%clk 0:02:03]}  Rxb3 {[%clk 0:00:18]} 26. Ne4 {[%clk 0:01:45]}  Be6 {[%clk 0:00:14]} 27. Nxe6 {[%clk 0:01:44]}  Kxe6 {[%clk 0:00:14]} 28. a7 {[%clk 0:01:42]}  Ra8 {[%clk 0:00:15]} 29. Ra6 {[%clk 0:01:42]}  Rb7 {[%clk 0:00:12]} 30. f4 {[%clk 0:01:41]}  Nd7 {[%clk 0:00:09]} 31. Rxc6+ {[%clk 0:01:35]}  Kf7 {[%clk 0:00:09]} 32. Rdc1 {[%clk 0:01:31]}  Raxa7 {[%clk 0:00:08]} 33. Bxa7 {[%clk 0:01:31]}  Rxa7 {[%clk 0:00:08]} 34. Rc7 {[%clk 0:01:31]}  Ra2+ {[%clk 0:00:09]} 35. R1c2 {[%clk 0:01:31]}  Rxc2+ {[%clk 0:00:08]} 36. Rxc2 {[%clk 0:01:32]}  Nf8 {[%clk 0:00:07]} 37. Kf3 {[%clk 0:01:32]}  Ne6 {[%clk 0:00:07]} 38. Rd2 {[%clk 0:01:32]}  Nc5 {[%clk 0:00:04]} 39. Nxc5 {[%clk 0:01:32]}  Bxc5 {[%clk 0:00:05]} 40. Ke4 {[%clk 0:01:32]}  Be7 {[%clk 0:00:04]} 41. f5 {[%clk 0:01:32]}  Bf8 {[%clk 0:00:04]} 42. Rd7+ {[%clk 0:01:32]}  Be7 {[%clk 0:00:05]} 43. Rb7 {[%clk 0:01:33]}  Ke8 {[%clk 0:00:04]} 44. Kd5 {[%clk 0:01:33]}  Kf7 {[%clk 0:00:03]} 45. h4 {[%clk 0:01:34]}  g6 {[%clk 0:00:02]} 46. h5 {[%clk 0:01:29]}  gxh5 {[%clk 0:00:01]} 47. gxh5 {[%clk 0:01:30]}  h6 {[%clk 0:00:01]} 48. Ra7 {[%clk 0:01:29]} 1-0


[Site "https://www.chess.com"]

[Event "Titled Tuesday Blitz May 03 Late 2022"]
[White "Shimanov, Aleksandr"]
[Black "Nagy, Gabor"]
[WhiteFideId "4198603"]
[BlackFideId "737119"]
[WhiteElo "2636"]
[BlackElo "2534"]
[Result "1-0"]
[Round "11"]
[TimeControl "180+1"]
[Date "2022.05.03"]
[WhiteClock "0:00:04"]
[BlackClock "0:01:11"]

1. e4 {[%clk 0:03:00]}  c5 {[%clk 0:02:59]} 2. Nf3 {[%clk 0:02:58]}  Nc6 {[%clk 0:02:59]} 3. Bc4 {[%clk 0:02:57]}  e6 {[%clk 0:02:59]} 4. O-O {[%clk 0:02:57]}  Nf6 {[%clk 0:02:59]} 5. e5 {[%clk 0:02:54]}  Ng4 {[%clk 0:02:59]} 6. Re1 {[%clk 0:02:47]}  d6 {[%clk 0:02:48]} 7. exd6 {[%clk 0:02:33]}  Bxd6 {[%clk 0:02:49]} 8. Nc3 {[%clk 0:02:33]}  O-O {[%clk 0:02:44]} 9. Ne4 {[%clk 0:02:33]}  Be7 {[%clk 0:02:43]} 10. d3 {[%clk 0:02:32]}  Nge5 {[%clk 0:02:41]} 11. Nxe5 {[%clk 0:02:20]}  Nxe5 {[%clk 0:02:42]} 12. Bb3 {[%clk 0:02:21]}  Nc6 {[%clk 0:02:36]} 13. Be3 {[%clk 0:02:19]}  b6 {[%clk 0:02:35]} 14. Qh5 {[%clk 0:02:18]}  Bb7 {[%clk 0:02:34]} 15. Rad1 {[%clk 0:02:14]}  Nd4 {[%clk 0:02:33]} 16. Bxd4 {[%clk 0:02:13]}  Qxd4 {[%clk 0:02:34]} 17. c3 {[%clk 0:02:12]}  Qd8 {[%clk 0:02:31]} 18. d4 {[%clk 0:02:12]}  cxd4 {[%clk 0:02:30]} 19. Rxd4 {[%clk 0:02:13]}  Qc7 {[%clk 0:02:30]} 20. Ng5 {[%clk 0:02:10]}  h6 {[%clk 0:02:26]} 21. Nxe6 {[%clk 0:01:54]}  fxe6 {[%clk 0:02:21]} 22. Rxe6 {[%clk 0:01:54]}  Kh7 {[%clk 0:01:41]} 23. Rxh6+ {[%clk 0:01:51]}  gxh6 {[%clk 0:01:39]} 24. Bc2+ {[%clk 0:01:51]}  Be4 {[%clk 0:01:34]} 25. Bxe4+ {[%clk 0:01:50]}  Kg7 {[%clk 0:01:35]} 26. Qg6+ {[%clk 0:01:50]}  Kh8 {[%clk 0:01:36]} 27. Qxh6+ {[%clk 0:00:59]}  Kg8 {[%clk 0:01:35]} 28. Qg6+ {[%clk 0:00:58]}  Kh8 {[%clk 0:01:35]} 29. Rd8 {[%clk 0:00:47]}  Bxd8 {[%clk 0:01:27]} 30. Qh6+ {[%clk 0:00:45]}  Kg8 {[%clk 0:01:26]} 31. Bxa8 {[%clk 0:00:35]}  Qe5 {[%clk 0:01:16]} 32. Qg6+ {[%clk 0:00:30]}  Kh8 {[%clk 0:01:14]} 33. Be4 {[%clk 0:00:24]}  Qg7 {[%clk 0:01:09]} 34. Qh5+ {[%clk 0:00:24]}  Kg8 {[%clk 0:01:09]} 35. Bd5+ {[%clk 0:00:23]}  Rf7 {[%clk 0:01:10]} 36. g3 {[%clk 0:00:19]}  Kf8 {[%clk 0:01:08]} 37. Qxf7+ {[%clk 0:00:19]}  Qxf7 {[%clk 0:01:08]} 38. Bxf7 {[%clk 0:00:19]}  Kxf7 {[%clk 0:01:09]} 39. f4 {[%clk 0:00:20]}  b5 {[%clk 0:01:09]} 40. Kg2 {[%clk 0:00:19]}  Ke6 {[%clk 0:01:09]} 41. Kf3 {[%clk 0:00:19]}  Kd5 {[%clk 0:01:09]} 42. g4 {[%clk 0:00:20]}  Kc4 {[%clk 0:01:09]} 43. g5 {[%clk 0:00:20]}  Kd3 {[%clk 0:01:10]} 44. h4 {[%clk 0:00:21]}  Kc2 {[%clk 0:01:09]} 45. h5 {[%clk 0:00:21]}  Kxb2 {[%clk 0:01:10]} 46. h6 {[%clk 0:00:21]}  Ba5 {[%clk 0:01:08]} 47. g6 {[%clk 0:00:20]}  Bxc3 {[%clk 0:01:08]} 48. g7 {[%clk 0:00:20]}  Kxa2 {[%clk 0:01:09]} 49. g8=Q+ {[%clk 0:00:20]}  Ka3 {[%clk 0:01:10]} 50. h7 {[%clk 0:00:19]}  b4 {[%clk 0:01:10]} 51. h8=Q {[%clk 0:00:18]}  Bxh8 {[%clk 0:01:11]} 52. Qxh8 {[%clk 0:00:19]}  a5 {[%clk 0:01:10]} 53. Qa1+ {[%clk 0:00:18]}  Kb3 {[%clk 0:01:10]} 54. Qxa5 {[%clk 0:00:18]}  Kc4 {[%clk 0:01:10]} 55. f5 {[%clk 0:00:17]}  b3 {[%clk 0:01:11]} 56. f6 {[%clk 0:00:16]}  Kd3 {[%clk 0:01:11]} 57. f7 {[%clk 0:00:16]}  b2 {[%clk 0:01:12]} 58. f8=Q {[%clk 0:00:16]}  Kc2 {[%clk 0:01:12]} 59. Qff5+ {[%clk 0:00:15]}  Kc1 {[%clk 0:01:12]} 60. Ke3 {[%clk 0:00:08]}  b1=Q {[%clk 0:01:11]} 61. Qc3+ {[%clk 0:00:05]}  Qc2 {[%clk 0:01:11]} 62. Qf1# {[%clk 0:00:04]} 1-0


[Site "https://www.chess.com"]

[Event "Titled Tuesday Blitz May 03 Late 2022"]
[White "Silvestre, Christian"]
[Black "Stanisz, Patryk"]
[WhiteFideId "30956269"]
[BlackFideId "1123106"]
[WhiteElo "2414"]
[BlackElo "1833"]
[Result "1-0"]
[Round "11"]
[TimeControl "180+1"]
[Date "2022.05.03"]
[WhiteClock "0:00:14"]
[BlackClock "0:00:07"]

1. Nf3 {[%clk 0:03:00]}  d5 {[%clk 0:02:59]} 2. d4 {[%clk 0:03:00]}  c6 {[%clk 0:03:00]} 3. g3 {[%clk 0:03:00]}  Nf6 {[%clk 0:03:01]} 4. Bg2 {[%clk 0:03:00]}  Bf5 {[%clk 0:03:01]} 5. O-O {[%clk 0:03:01]}  h6 {[%clk 0:03:02]} 6. c4 {[%clk 0:03:01]}  e6 {[%clk 0:03:02]} 7. Nc3 {[%clk 0:02:58]}  Nbd7 {[%clk 0:03:02]} 8. Re1 {[%clk 0:02:57]}  Ne4 {[%clk 0:03:02]} 9. Nxe4 {[%clk 0:02:53]}  Bxe4 {[%clk 0:03:03]} 10. Nd2 {[%clk 0:02:48]}  Bxg2 {[%clk 0:03:04]} 11. Kxg2 {[%clk 0:02:48]}  Be7 {[%clk 0:03:04]} 12. Qc2 {[%clk 0:02:47]}  O-O {[%clk 0:03:02]} 13. e4 {[%clk 0:02:47]}  dxe4 {[%clk 0:03:03]} 14. Nxe4 {[%clk 0:02:47]}  Nf6 {[%clk 0:03:03]} 15. Be3 {[%clk 0:02:41]}  Qa5 {[%clk 0:02:58]} 16. a3 {[%clk 0:02:34]}  Rfd8 {[%clk 0:02:56]} 17. b4 {[%clk 0:02:30]}  Qf5 {[%clk 0:02:57]} 18. Nxf6+ {[%clk 0:02:29]}  Qxf6 {[%clk 0:02:57]} 19. Rad1 {[%clk 0:02:28]}  Rd7 {[%clk 0:02:56]} 20. Bf4 {[%clk 0:02:11]}  a5 {[%clk 0:02:53]} 21. Be5 {[%clk 0:02:11]}  Qf5 {[%clk 0:02:42]} 22. Qxf5 {[%clk 0:02:09]}  exf5 {[%clk 0:02:43]} 23. d5 {[%clk 0:01:45]}  cxd5 {[%clk 0:02:30]} 24. c5 {[%clk 0:01:38]}  axb4 {[%clk 0:02:30]} 25. axb4 {[%clk 0:01:38]}  Ra4 {[%clk 0:02:20]} 26. Bc3 {[%clk 0:01:27]}  Kf8 {[%clk 0:02:09]} 27. Rd3 {[%clk 0:01:21]}  d4 {[%clk 0:02:06]} 28. Rxd4 {[%clk 0:01:08]}  Rxd4 {[%clk 0:01:55]} 29. Bxd4 {[%clk 0:01:09]}  g5 {[%clk 0:01:27]} 30. Ra1 {[%clk 0:00:37]}  Rxa1 {[%clk 0:01:23]} 31. Bxa1 {[%clk 0:00:37]}  Ke8 {[%clk 0:01:20]} 32. Kf3 {[%clk 0:00:36]}  Kd7 {[%clk 0:01:20]} 33. Ke2 {[%clk 0:00:35]}  b6 {[%clk 0:01:05]} 34. cxb6 {[%clk 0:00:27]}  Bxb4 {[%clk 0:00:58]} 35. Bg7 {[%clk 0:00:27]}  h5 {[%clk 0:00:50]} 36. Bf6 {[%clk 0:00:22]}  g4 {[%clk 0:00:48]} 37. Be5 {[%clk 0:00:21]}  Bc5 {[%clk 0:00:44]} 38. b7 {[%clk 0:00:19]}  Ba7 {[%clk 0:00:08]} 39. b8=Q {[%clk 0:00:20]}  Bxb8 {[%clk 0:00:09]} 40. Bxb8 {[%clk 0:00:19]}  Ke6 {[%clk 0:00:10]} 41. Bf4 {[%clk 0:00:19]}  f6 {[%clk 0:00:09]} 42. Kd3 {[%clk 0:00:19]}  Kd5 {[%clk 0:00:10]} 43. Be3 {[%clk 0:00:18]}  Ke5 {[%clk 0:00:10]} 44. Kc4 {[%clk 0:00:16]}  Ke4 {[%clk 0:00:10]} 45. Kc5 {[%clk 0:00:16]}  Kf3 {[%clk 0:00:06]} 46. Kd5 {[%clk 0:00:15]}  f4 {[%clk 0:00:07]} 47. Bxf4 {[%clk 0:00:13]}  Kxf2 {[%clk 0:00:07]} 48. Ke6 {[%clk 0:00:13]}  Kg2 {[%clk 0:00:07]} 49. Kxf6 {[%clk 0:00:13]}  Kxh2 {[%clk 0:00:06]} 50. Kg5 {[%clk 0:00:13]}  Kh3 {[%clk 0:00:03]} 51. Kxh5 {[%clk 0:00:13]}  Kg2 {[%clk 0:00:03]} 52. Kxg4 {[%clk 0:00:14]}  Kh2 {[%clk 0:00:04]} 53. Kf5 {[%clk 0:00:14]}  Kg2 {[%clk 0:00:05]} 54. g4 {[%clk 0:00:14]}  Kh3 {[%clk 0:00:06]} 55. g5 {[%clk 0:00:14]}  Kh4 {[%clk 0:00:07]} 56. g6 {[%clk 0:00:15]}  Kh5 {[%clk 0:00:07]} 57. g7 {[%clk 0:00:14]} 1-0


[Site "https://www.chess.com"]

[Event "Titled Tuesday Blitz May 03 Late 2022"]
[White "Simonovic, Miroslav"]
[Black "Remolar Gallen, Jose"]
[WhiteFideId "919152"]
[BlackFideId "2215187"]
[WhiteElo "2043"]
[BlackElo "2205"]
[Result "0-1"]
[Round "11"]
[TimeControl "180+1"]
[Date "2022.05.03"]
[WhiteClock "0:00:02"]
[BlackClock "0:00:15"]

1. d4 {[%clk 0:03:00]}  d5 {[%clk 0:02:59]} 2. Bg5 {[%clk 0:03:01]}  c5 {[%clk 0:02:53]} 3. c3 {[%clk 0:03:00]}  Nc6 {[%clk 0:02:51]} 4. e3 {[%clk 0:03:00]}  h6 {[%clk 0:02:52]} 5. Bh4 {[%clk 0:03:00]}  g5 {[%clk 0:02:52]} 6. Bg3 {[%clk 0:03:00]}  Bg7 {[%clk 0:02:52]} 7. dxc5 {[%clk 0:02:38]}  Nf6 {[%clk 0:02:39]} 8. Nd2 {[%clk 0:02:32]}  a5 {[%clk 0:02:36]} 9. Bb5 {[%clk 0:02:23]}  Bd7 {[%clk 0:02:30]} 10. a4 {[%clk 0:02:10]}  b6 {[%clk 0:02:24]} 11. Nb3 {[%clk 0:02:02]}  Ne4 {[%clk 0:02:16]} 12. Ne2 {[%clk 0:01:42]}  e6 {[%clk 0:02:15]} 13. cxb6 {[%clk 0:01:32]}  Qxb6 {[%clk 0:02:12]} 14. Nbd4 {[%clk 0:01:02]}  h5 {[%clk 0:01:30]} 15. f3 {[%clk 0:00:52]}  Nxg3 {[%clk 0:01:02]} 16. hxg3 {[%clk 0:00:53]}  Ne5 {[%clk 0:00:53]} 17. Bxd7+ {[%clk 0:00:38]}  Kxd7 {[%clk 0:00:54]} 18. Qb3 {[%clk 0:00:19]}  Qxb3 {[%clk 0:00:46]} 19. Nxb3 {[%clk 0:00:20]}  Nd3+ {[%clk 0:00:46]} 20. Kd1 {[%clk 0:00:16]}  Nxb2+ {[%clk 0:00:46]} 21. Kc2 {[%clk 0:00:16]}  Nc4 {[%clk 0:00:46]} 22. Kd3 {[%clk 0:00:15]}  Rab8 {[%clk 0:00:39]} 23. Rab1 {[%clk 0:00:12]}  h4 {[%clk 0:00:28]} 24. gxh4 {[%clk 0:00:12]}  gxh4 {[%clk 0:00:29]} 25. Nc5+ {[%clk 0:00:11]}  Kc6 {[%clk 0:00:24]} 26. Rxb8 {[%clk 0:00:10]}  Rxb8 {[%clk 0:00:23]} 27. Na6 {[%clk 0:00:09]}  Rb2 {[%clk 0:00:22]} 28. Nd4+ {[%clk 0:00:09]}  Kd6 {[%clk 0:00:20]} 29. Nb5+ {[%clk 0:00:08]}  Kc6 {[%clk 0:00:18]} 30. Rd1 {[%clk 0:00:02]}  Rxg2 {[%clk 0:00:16]} 31. e4 {[%clk 0:00:02]}  Nb2+ {[%clk 0:00:15]} 0-1


[Site "https://www.chess.com"]